[Event "*** Titled Tuesday Blitz"]
[Site "Chess.com"]
[Date "2020.05.12"]
[Round "5"]
[White "Bubar"]
[Black "letantha"]
[Result "1/2-1/2"]
[WhiteElo "2324"]
[BlackElo "2161"]
[TimeControl "180+1"]
[EndTime "10:57:06 PDT"]
[Termination "Game drawn by repetition"]

1. d4 {[%clk 0:02:58.4]} 1... Nf6 {[%clk 0:02:59.4]} 2. Nf3 {[%clk 0:02:58.5]}
2... e6 {[%clk 0:02:59.3]} 3. c4 {[%clk 0:02:59.1]} 3... Bb4+ {[%clk 0:02:58.7]}
4. Nbd2 {[%clk 0:02:58.7]} 4... b6 {[%clk 0:02:55]} 5. g3 {[%clk 0:02:58.8]}
5... Bb7 {[%clk 0:02:46.3]} 6. Bg2 {[%clk 0:02:58.9]} 6... O-O {[%clk
0:02:43.9]} 7. O-O {[%clk 0:02:58.1]} 7... Re8 {[%clk 0:02:43.9]} 8. d5 {[%clk
0:02:56.3]} 8... exd5 {[%clk 0:02:37.7]} 9. Nh4 {[%clk 0:02:55.7]} 9... Bf8
{[%clk 0:02:18.4]} 10. cxd5 {[%clk 0:02:52.6]} 10... Bxd5 {[%clk 0:02:08]} 11.
e4 {[%clk 0:02:52.6]} 11... Bc6 {[%clk 0:01:47]} 12. Re1 {[%clk 0:02:51]} 12...
d6 {[%clk 0:01:23.2]} 13. Nf5 {[%clk 0:02:49.8]} 13... Nfd7 {[%clk 0:01:15.1]}
14. Nd4 {[%clk 0:02:48.4]} 14... Bb7 {[%clk 0:01:05.5]} 15. Nc4 {[%clk
0:02:39.5]} 15... Nc5 {[%clk 0:01:03.4]} 16. Qc2 {[%clk 0:02:35.4]} 16... a5
{[%clk 0:00:59.1]} 17. Bf4 {[%clk 0:02:34.9]} 17... Nbd7 {[%clk 0:00:54.4]} 18.
Rad1 {[%clk 0:02:34.5]} 18... Ne6 {[%clk 0:00:53.2]} 19. Nxe6 {[%clk 0:02:33.2]}
19... Rxe6 {[%clk 0:00:54.1]} 20. Ne3 {[%clk 0:02:24.7]} 20... Nc5 {[%clk
0:00:50.9]} 21. Nd5 {[%clk 0:02:24.7]} 21... Bxd5 {[%clk 0:00:49.4]} 22. exd5
{[%clk 0:02:24.2]} 22... Rxe1+ {[%clk 0:00:49.1]} 23. Rxe1 {[%clk 0:02:24.7]}
23... Qd7 {[%clk 0:00:48.8]} 24. Bf1 {[%clk 0:02:18.4]} 24... Re8 {[%clk
0:00:46.3]} 25. Rc1 {[%clk 0:02:18]} 25... g6 {[%clk 0:00:42.9]} 26. a3 {[%clk
0:02:17.9]} 26... a4 {[%clk 0:00:41.2]} 27. Be3 {[%clk 0:02:17.2]} 27... Qg4
{[%clk 0:00:33.5]} 28. Bxc5 {[%clk 0:02:12.6]} 28... dxc5 {[%clk 0:00:28]} 29.
Bb5 {[%clk 0:02:13]} 29... Re5 {[%clk 0:00:21.6]} 30. Bxa4 {[%clk 0:02:09.1]}
30... Rxd5 {[%clk 0:00:19.5]} 31. Bc6 {[%clk 0:02:05.7]} 31... Re5 {[%clk
0:00:18.8]} 32. Kg2 {[%clk 0:01:57.6]} 32... Bd6 {[%clk 0:00:19]} 33. Bf3 {[%clk
0:01:55.6]} 33... Qf5 {[%clk 0:00:19.3]} 34. Qd2 {[%clk 0:01:49.4]} 34... h5
{[%clk 0:00:19.1]} 35. h4 {[%clk 0:01:48.4]} 35... Kg7 {[%clk 0:00:19]} 36. Rc4
{[%clk 0:01:46.6]} 36... Re6 {[%clk 0:00:18.5]} 37. Bd5 {[%clk 0:01:41.8]} 37...
Rf6 {[%clk 0:00:18.5]} 38. f4 {[%clk 0:01:40.8]} 38... Qg4 {[%clk 0:00:18]} 39.
Bf3 {[%clk 0:01:40.6]} 39... Qe6 {[%clk 0:00:17.4]} 40. Re4 {[%clk 0:01:40.7]}
40... Qf5 {[%clk 0:00:17.1]} 41. Qe2 {[%clk 0:01:40.4]} 41... Re6 {[%clk
0:00:15.1]} 42. Rxe6 {[%clk 0:01:38.8]} 42... Qxe6 {[%clk 0:00:16]} 43. Qd3
{[%clk 0:01:37.7]} 43... Qf6 {[%clk 0:00:16.1]} 44. b3 {[%clk 0:01:37.8]} 44...
Qb2+ {[%clk 0:00:15.9]} 45. Kh3 {[%clk 0:01:35.9]} 45... Qxa3 {[%clk 0:00:15.6]}
46. f5 {[%clk 0:01:36.8]} 46... Qb2 {[%clk 0:00:14.6]} 47. fxg6 {[%clk
0:01:36.8]} 47... fxg6 {[%clk 0:00:15.5]} 48. Bd5 {[%clk 0:01:33.3]} 48... Qf6
{[%clk 0:00:15.2]} 49. Qe4 {[%clk 0:01:32.5]} 49... Qf5+ {[%clk 0:00:15.2]} 50.
Qxf5 {[%clk 0:01:32.4]} 50... gxf5 {[%clk 0:00:16.1]} 51. Kg2 {[%clk 0:01:32.3]}
51... Kf6 {[%clk 0:00:16]} 52. Kf3 {[%clk 0:01:33.2]} 52... b5 {[%clk
0:00:12.2]} 53. Bc6 {[%clk 0:01:32.4]} 53... Be5 {[%clk 0:00:12.2]} 54. Bxb5
{[%clk 0:01:32]} 54... Bd4 {[%clk 0:00:12.6]} 55. Bd3 {[%clk 0:01:31.1]} 55...
Be5 {[%clk 0:00:12.8]} 56. Bc4 {[%clk 0:01:30.8]} 56... Bd6 {[%clk 0:00:13.2]}
57. Bf1 {[%clk 0:01:29.8]} 57... Be5 {[%clk 0:00:13.5]} 58. Ba6 {[%clk
0:01:30.3]} 58... Bd6 {[%clk 0:00:13.6]} 59. Bb5 {[%clk 0:01:30.8]} 59... Be5
{[%clk 0:00:13.8]} 60. Be8 {[%clk 0:01:31.3]} 60... Bc3 {[%clk 0:00:08.8]} 61.
Bxh5 {[%clk 0:01:31.5]} 61... Be1 {[%clk 0:00:09.2]} 62. Be8 {[%clk 0:01:31.2]}
62... Bd2 {[%clk 0:00:07.9]} 63. Bb5 {[%clk 0:01:30.9]} 63... Ke5 {[%clk
0:00:06]} 64. Bd3 {[%clk 0:01:30.6]} 64... f4 {[%clk 0:00:04.1]} 65. g4 {[%clk
0:01:30]} 65... Be1 {[%clk 0:00:04.1]} 66. h5 {[%clk 0:01:25.2]} 66... Bh4
{[%clk 0:00:03.9]} 67. h6 {[%clk 0:01:24.9]} 67... Kf6 {[%clk 0:00:02.5]} 68.
Kxf4 {[%clk 0:01:22.9]} 68... Bg5+ {[%clk 0:00:02.1]} 69. Ke4 {[%clk 0:01:23.3]}
69... Bxh6 {[%clk 0:00:03]} 70. Kd5 {[%clk 0:01:24.2]} 70... Be3 {[%clk
0:00:02.6]} 71. Kc6 {[%clk 0:01:24.6]} 71... Kg5 {[%clk 0:00:02]} 72. Bf5 {[%clk
0:01:24.5]} 72... Bf2 {[%clk 0:00:02.5]} 73. Kxc7 {[%clk 0:01:24.6]} 73... Be3
{[%clk 0:00:03.1]} 74. Kc6 {[%clk 0:01:25]} 74... Bf2 {[%clk 0:00:03.8]} 75. Kd5
{[%clk 0:01:25.3]} 75... Be3 {[%clk 0:00:04.4]} 76. Be6 {[%clk 0:01:25.7]} 76...
Bg1 {[%clk 0:00:05]} 77. Ke4 {[%clk 0:01:26]} 77... Bf2 {[%clk 0:00:05.6]} 78.
Kf3 {[%clk 0:01:25.6]} 78... Bg1 {[%clk 0:00:06.1]} 79. Ke2 {[%clk 0:01:25.9]}
79... Bd4 {[%clk 0:00:07]} 80. Bd7 {[%clk 0:01:26.2]} 80... Bf6 {[%clk
0:00:07.2]} 81. Kd3 {[%clk 0:01:26.3]} 81... Be7 {[%clk 0:00:07.8]} 82. Kc4
{[%clk 0:01:26.5]} 82... Bf8 {[%clk 0:00:08.3]} 83. Bf5 {[%clk 0:01:27]} 83...
Be7 {[%clk 0:00:08.1]} 84. Kd5 {[%clk 0:01:27.9]} 84... Bf8 {[%clk 0:00:08.7]}
85. Ke6 {[%clk 0:01:28.5]} 85... Bg7 {[%clk 0:00:08.3]} 86. Ke7 {[%clk
0:01:28.4]} 86... Bd4 {[%clk 0:00:08.8]} 87. Ke6 {[%clk 0:01:28.4]} 87... Bg1
{[%clk 0:00:09.4]} 88. Kd5 {[%clk 0:01:29.3]} 88... Bf2 {[%clk 0:00:09.5]} 89.
Ke4 {[%clk 0:01:29]} 89... Bg1 {[%clk 0:00:09.8]} 90. Bd7 {[%clk 0:01:28.3]}
90... Bf2 {[%clk 0:00:09.9]} 91. Kf3 {[%clk 0:01:28.2]} 91... Bg1 {[%clk
0:00:10.3]} 92. Be6 {[%clk 0:01:28.4]} 92... Bd4 {[%clk 0:00:10.5]} 93. Ke4
{[%clk 0:01:29.3]} 93... Bg7 {[%clk 0:00:10.7]} 94. Kd5 {[%clk 0:01:28]} 94...
Bf8 {[%clk 0:00:11]} 95. Kc6 {[%clk 0:01:28.2]} 95... Be7 {[%clk 0:00:10.6]} 96.
Kd7 {[%clk 0:01:29.1]} 96... Bf8 {[%clk 0:00:11.1]} 97. Ke8 {[%clk 0:01:28.3]}
97... Bg7 {[%clk 0:00:11.4]} 98. Ke7 {[%clk 0:01:29.2]} 98... Bd4 {[%clk
0:00:11.8]} 99. Kd6 {[%clk 0:01:29.5]} 99... Bg1 {[%clk 0:00:11.8]} 100. Kd5
{[%clk 0:01:30.2]} 100... Bf2 {[%clk 0:00:12]} 101. Ke4 {[%clk 0:01:29.4]}
101... Bg1 {[%clk 0:00:12.5]} 102. Kd3 {[%clk 0:01:29.8]} 102... Bf2 {[%clk
0:00:12.5]} 103. Ke2 {[%clk 0:01:30.6]} 103... Bg1 {[%clk 0:00:12.9]} 104. Kd3
{[%clk 0:01:31]} 104... Bf2 {[%clk 0:00:13]} 105. b4 {[%clk 0:01:31.9]} 105...
cxb4 {[%clk 0:00:12.1]} 106. Kc4 {[%clk 0:01:31.9]} 106... Be1 {[%clk
0:00:12.6]} 107. Kb3 {[%clk 0:01:32.8]} 107... Bc3 {[%clk 0:00:12.5]} 108. Kc4
{[%clk 0:01:33.7]} 108... Kf4 {[%clk 0:00:13]} 109. Kb3 {[%clk 0:01:34.6]}
109... Kg5 {[%clk 0:00:13.7]} 110. Bc8 {[%clk 0:01:33.8]} 110... Kf4 {[%clk
0:00:14.6]} 111. Kc4 {[%clk 0:01:34]} 111... Kg5 {[%clk 0:00:15.5]} 112. Kb3
{[%clk 0:01:34.5]} 112... Kf4 {[%clk 0:00:16.4]} 113. Kc4 {[%clk 0:01:35.4]}
113... Kg5 {[%clk 0:00:17.3]} 114. Kb3 {[%clk 0:01:36.3]} 1/2-1/2

[Event "*** Titled Tuesday Blitz"]
[Site "Chess.com"]
[Date "2020.05.12"]
[Round "5"]
[White "Durarbayli"]
[Black "Quaternitychess"]
[Result "0-1"]
[WhiteElo "2779"]
[BlackElo "2628"]
[TimeControl "180+1"]
[EndTime "10:57:09 PDT"]
[Termination "Quaternitychess won on time"]

1. e4 {[%clk 0:03:00.9]} 1... d6 {[%clk 0:03:00.2]} 2. d4 {[%clk 0:02:59.4]}
2... Nf6 {[%clk 0:03:01.1]} 3. Nc3 {[%clk 0:02:59.7]} 3... Nbd7 {[%clk
0:03:01.8]} 4. Nf3 {[%clk 0:02:59.6]} 4... e5 {[%clk 0:03:01.5]} 5. g3 {[%clk
0:02:59.5]} 5... g6 {[%clk 0:03:00.3]} 6. Bg2 {[%clk 0:02:59.4]} 6... Bg7 {[%clk
0:03:01]} 7. O-O {[%clk 0:02:59.9]} 7... O-O {[%clk 0:03:01.6]} 8. Re1 {[%clk
0:03:00.4]} 8... c6 {[%clk 0:03:01.5]} 9. a4 {[%clk 0:02:59.5]} 9... a5 {[%clk
0:03:01.3]} 10. h3 {[%clk 0:02:58]} 10... Re8 {[%clk 0:02:49.3]} 11. Be3 {[%clk
0:02:55.6]} 11... exd4 {[%clk 0:02:47.5]} 12. Bxd4 {[%clk 0:02:55.2]} 12... Qc7
{[%clk 0:02:46.7]} 13. Qd2 {[%clk 0:02:46.8]} 13... Ne5 {[%clk 0:02:46.1]} 14.
Kh2 {[%clk 0:02:27.4]} 14... Be6 {[%clk 0:02:36.7]} 15. Rad1 {[%clk 0:02:25.3]}
15... Rad8 {[%clk 0:02:35.9]} 16. Qe3 {[%clk 0:02:24]} 16... Nc4 {[%clk
0:02:30.1]} 17. Qf4 {[%clk 0:02:21.3]} 17... Nh5 {[%clk 0:02:25.5]} 18. Qc1
{[%clk 0:02:20.2]} 18... Ne5 {[%clk 0:01:54.8]} 19. b3 {[%clk 0:02:12.6]} 19...
h6 {[%clk 0:01:51.8]} 20. Qe3 {[%clk 0:02:10.3]} 20... c5 {[%clk 0:01:44.2]} 21.
Bxe5 {[%clk 0:02:09.9]} 21... dxe5 {[%clk 0:01:44.7]} 22. Nb5 {[%clk 0:01:58.6]}
22... Qb8 {[%clk 0:01:28]} 23. Nd2 {[%clk 0:01:41.9]} 23... b6 {[%clk
0:00:57.1]} 24. Bf1 {[%clk 0:01:41.3]} 24... Nf6 {[%clk 0:00:50.6]} 25. Bc4
{[%clk 0:01:39]} 25... Bd7 {[%clk 0:00:49.8]} 26. Nb1 {[%clk 0:01:20.6]} 26...
Bc6 {[%clk 0:00:45.2]} 27. N1c3 {[%clk 0:01:19.8]} 27... Rd4 {[%clk 0:00:45.3]}
28. Qf3 {[%clk 0:01:13.2]} 28... h5 {[%clk 0:00:43.1]} 29. Nd5 {[%clk
0:01:08.4]} 29... Bxd5 {[%clk 0:00:42.6]} 30. Bxd5 {[%clk 0:01:04.7]} 30... Rxd1
{[%clk 0:00:39.1]} 31. Rxd1 {[%clk 0:01:05.6]} 31... Rd8 {[%clk 0:00:33.9]} 32.
c4 {[%clk 0:00:49.8]} 32... Rd7 {[%clk 0:00:31.2]} 33. Rd3 {[%clk 0:00:44]}
33... Qd8 {[%clk 0:00:30.6]} 34. Nc3 {[%clk 0:00:43.1]} 34... h4 {[%clk
0:00:29.3]} 35. g4 {[%clk 0:00:42.5]} 35... Kf8 {[%clk 0:00:26.3]} 36. Qe3
{[%clk 0:00:36.4]} 36... Nh7 {[%clk 0:00:24.2]} 37. Ne2 {[%clk 0:00:35.6]} 37...
Ng5 {[%clk 0:00:24]} 38. f4 {[%clk 0:00:23.2]} 38... exf4 {[%clk 0:00:23.6]} 39.
Nxf4 {[%clk 0:00:22.4]} 39... Be5 {[%clk 0:00:23.5]} 40. Kg2 {[%clk 0:00:22.7]}
40... Qf6 {[%clk 0:00:23.2]} 41. Ne2 {[%clk 0:00:20.5]} 41... Kg7 {[%clk
0:00:23.4]} 42. Rd1 {[%clk 0:00:20.1]} 42... Qe7 {[%clk 0:00:20.9]} 43. Rf1
{[%clk 0:00:20]} 43... Rd6 {[%clk 0:00:21.4]} 44. Qf2 {[%clk 0:00:16.3]} 44...
Rf6 {[%clk 0:00:20.4]} 45. Qxh4 {[%clk 0:00:16.2]} 45... Rxf1 {[%clk 0:00:19.8]}
46. Kxf1 {[%clk 0:00:17.1]} 46... Qf6+ {[%clk 0:00:20.4]} 47. Qf2 {[%clk
0:00:17.2]} 47... Nxh3 {[%clk 0:00:19.6]} 48. Qxf6+ {[%clk 0:00:16.8]} 48...
Kxf6 {[%clk 0:00:20.5]} 49. Kg2 {[%clk 0:00:12.4]} 49... Ng5 {[%clk 0:00:20.9]}
50. Kf2 {[%clk 0:00:08.2]} 50... Bd4+ {[%clk 0:00:18.1]} 51. Kg3 {[%clk
0:00:08]} 51... Ke5 {[%clk 0:00:18.3]} 52. Nc1 {[%clk 0:00:05.4]} 52... Nxe4+
{[%clk 0:00:17]} 53. Kf3 {[%clk 0:00:03.6]} 53... Ng5+ {[%clk 0:00:17]} 54. Ke2
{[%clk 0:00:04]} 54... Bg1 {[%clk 0:00:14.1]} 55. Nd3+ {[%clk 0:00:03.2]} 55...
Kd4 {[%clk 0:00:14.6]} 56. Bc6 {[%clk 0:00:03.3]} 56... Bh2 {[%clk 0:00:12.6]}
57. Be8 {[%clk 0:00:02.7]} 57... Kc3 {[%clk 0:00:12.1]} 58. Ke3 {[%clk
0:00:03.2]} 58... Kxb3 {[%clk 0:00:11.3]} 59. Bb5 {[%clk 0:00:04.1]} 59... Bd6
{[%clk 0:00:07.9]} 60. Nf4 {[%clk 0:00:01.9]} 60... f5 {[%clk 0:00:05.7]} 0-1

[Event "*** Titled Tuesday Blitz"]
[Site "Chess.com"]
[Date "2020.05.12"]
[Round "5"]
[White "Andrei_Belozerov"]
[Black "crescentmoon2411"]
[Result "0-1"]
[WhiteElo "2593"]
[BlackElo "2806"]
[TimeControl "180+1"]
[EndTime "10:57:11 PDT"]
[Termination "crescentmoon2411 won on time"]

1. e4 {[%clk 0:03:00.9]} 1... c6 {[%clk 0:02:57.8]} 2. d4 {[%clk 0:03:00.4]}
2... d5 {[%clk 0:02:58.2]} 3. Nd2 {[%clk 0:03:01]} 3... dxe4 {[%clk 0:02:57.7]}
4. Nxe4 {[%clk 0:03:01.6]} 4... Nf6 {[%clk 0:02:57.7]} 5. Nxf6+ {[%clk
0:03:01.5]} 5... exf6 {[%clk 0:02:57.5]} 6. c3 {[%clk 0:03:01.1]} 6... Bd6
{[%clk 0:02:55.6]} 7. Bd3 {[%clk 0:03:01.5]} 7... Qe7+ {[%clk 0:02:53.4]} 8. Ne2
{[%clk 0:03:00.8]} 8... Bg4 {[%clk 0:02:51.9]} 9. f3 {[%clk 0:02:57.6]} 9... Bh5
{[%clk 0:02:51.7]} 10. O-O {[%clk 0:02:48.8]} 10... O-O {[%clk 0:02:49.7]} 11.
Ng3 {[%clk 0:02:42.1]} 11... Bg6 {[%clk 0:02:48.4]} 12. Nf5 {[%clk 0:02:39.2]}
12... Qc7 {[%clk 0:02:36]} 13. g3 {[%clk 0:02:31.9]} 13... Nd7 {[%clk
0:02:32.9]} 14. Nxd6 {[%clk 0:02:18]} 14... Qxd6 {[%clk 0:02:32.6]} 15. Bf4
{[%clk 0:02:18.4]} 15... Qd5 {[%clk 0:02:32.3]} 16. Bxg6 {[%clk 0:02:17.1]}
16... hxg6 {[%clk 0:02:32.1]} 17. Qb3 {[%clk 0:02:17.6]} 17... Nb6 {[%clk
0:02:30.5]} 18. Qxd5 {[%clk 0:02:16.4]} 18... Nxd5 {[%clk 0:02:26.8]} 19. Bd2
{[%clk 0:02:14.5]} 19... Rfe8 {[%clk 0:02:20.5]} 20. Kf2 {[%clk 0:02:13.5]}
20... Nc7 {[%clk 0:02:11.3]} 21. Rfe1 {[%clk 0:02:11.6]} 21... Ne6 {[%clk
0:02:10.9]} 22. a4 {[%clk 0:02:09.6]} 22... a5 {[%clk 0:02:00.1]} 23. h4 {[%clk
0:02:05.4]} 23... Red8 {[%clk 0:01:58.3]} 24. Rad1 {[%clk 0:01:53.3]} 24... Rd7
{[%clk 0:01:55.6]} 25. g4 {[%clk 0:01:46.6]} 25... Rad8 {[%clk 0:01:51.9]} 26.
Be3 {[%clk 0:01:44]} 26... c5 {[%clk 0:01:47.3]} 27. Rd2 {[%clk 0:01:43.6]}
27... f5 {[%clk 0:01:31.4]} 28. gxf5 {[%clk 0:01:13.4]} 28... gxf5 {[%clk
0:01:32.3]} 29. Bg5 {[%clk 0:01:13]} 29... Nxg5 {[%clk 0:01:24.5]} 30. hxg5
{[%clk 0:01:12.9]} 30... cxd4 {[%clk 0:01:24.9]} 31. Red1 {[%clk 0:01:01.9]}
31... d3 {[%clk 0:01:24.7]} 32. Ke3 {[%clk 0:01:01.3]} 32... Re8+ {[%clk
0:01:17.1]} 33. Kf4 {[%clk 0:01:01.3]} 33... Rc7 {[%clk 0:01:17]} 34. Rxd3
{[%clk 0:00:54.3]} 34... Re2 {[%clk 0:01:06.2]} 35. Rd8+ {[%clk 0:00:41.2]}
35... Kh7 {[%clk 0:01:06]} 36. R1d7 {[%clk 0:00:41.2]} 36... Rc4+ {[%clk
0:00:51.2]} 37. Kg3 {[%clk 0:00:41.3]} 37... Kg6 {[%clk 0:00:45.4]} 38. Rf8
{[%clk 0:00:36.8]} 38... Kxg5 {[%clk 0:00:35.9]} 39. Rfxf7 {[%clk 0:00:36.5]}
39... g6 {[%clk 0:00:35.9]} 40. Rd6 {[%clk 0:00:33.2]} 40... Rh4 {[%clk
0:00:32.3]} 41. f4+ {[%clk 0:00:17.4]} 41... Rxf4 {[%clk 0:00:32]} 42. Rff6
{[%clk 0:00:16.6]} 42... Re3+ {[%clk 0:00:28.9]} 43. Kg2 {[%clk 0:00:16.8]}
43... Rxa4 {[%clk 0:00:23.1]} 44. Rxg6+ {[%clk 0:00:16.3]} 44... Kf4 {[%clk
0:00:23.4]} 45. Rh6 {[%clk 0:00:14.3]} 45... Re2+ {[%clk 0:00:21.9]} 46. Kf1
{[%clk 0:00:14.2]} 46... Rae4 {[%clk 0:00:20.6]} 47. Rh4+ {[%clk 0:00:12.4]}
47... Ke3 {[%clk 0:00:14.5]} 48. Rxe4+ {[%clk 0:00:11.7]} 48... fxe4 {[%clk
0:00:14.1]} 49. Rb6 {[%clk 0:00:11]} 49... Rf2+ {[%clk 0:00:13.9]} 50. Kg1
{[%clk 0:00:10.7]} 50... Rf7 {[%clk 0:00:13.9]} 51. Rb5 {[%clk 0:00:10.4]} 51...
Kd2 {[%clk 0:00:10.8]} 52. Rd5+ {[%clk 0:00:10.2]} 52... Ke2 {[%clk 0:00:10.5]}
53. Rxa5 {[%clk 0:00:10.1]} 53... e3 {[%clk 0:00:11]} 54. Rd5 {[%clk 0:00:09.9]}
54... Ke1 {[%clk 0:00:11]} 55. c4 {[%clk 0:00:09.9]} 55... Rg7+ {[%clk
0:00:10.5]} 56. Kh2 {[%clk 0:00:10]} 56... e2 {[%clk 0:00:10.9]} 57. c5 {[%clk
0:00:09.7]} 57... Kf2 {[%clk 0:00:10.5]} 58. Rf5+ {[%clk 0:00:09.4]} 58... Ke3
{[%clk 0:00:10.4]} 59. Re5+ {[%clk 0:00:09.5]} 59... Kf2 {[%clk 0:00:06.7]} 60.
Rf5+ {[%clk 0:00:09.6]} 60... Ke1 {[%clk 0:00:07]} 61. b4 {[%clk 0:00:09.1]}
61... Re7 {[%clk 0:00:05.2]} 62. Kg2 {[%clk 0:00:07.4]} 62... Kd2 {[%clk
0:00:05.3]} 63. Rd5+ {[%clk 0:00:07.6]} 63... Kc3 {[%clk 0:00:05.6]} 64. b5
{[%clk 0:00:05.5]} 64... e1=Q {[%clk 0:00:05.5]} 0-1

[Event "*** Titled Tuesday Blitz"]
[Site "Chess.com"]
[Date "2020.05.12"]
[Round "5"]
[White "zala02"]
[Black "umngqusho"]
[Result "1-0"]
[WhiteElo "2268"]
[BlackElo "2447"]
[TimeControl "180+1"]
[EndTime "10:57:11 PDT"]
[Termination "zala02 won by resignation"]

1. d4 {[%clk 0:03:00.9]} 1... Nf6 {[%clk 0:02:59.4]} 2. c4 {[%clk 0:03:00]} 2...
e6 {[%clk 0:02:58.2]} 3. Nc3 {[%clk 0:02:59.6]} 3... Bb4 {[%clk 0:02:58.2]} 4.
Nf3 {[%clk 0:02:58.8]} 4... O-O {[%clk 0:02:57.2]} 5. Bg5 {[%clk 0:02:58.2]}
5... d5 {[%clk 0:02:52.5]} 6. e3 {[%clk 0:02:43.6]} 6... h6 {[%clk 0:02:38.5]}
7. Bh4 {[%clk 0:02:41.9]} 7... b6 {[%clk 0:02:26.8]} 8. cxd5 {[%clk 0:02:36.6]}
8... exd5 {[%clk 0:02:24.3]} 9. Rc1 {[%clk 0:02:32.6]} 9... Be7 {[%clk
0:02:23.3]} 10. Bd3 {[%clk 0:02:31.9]} 10... c5 {[%clk 0:02:18.5]} 11. O-O
{[%clk 0:02:19]} 11... c4 {[%clk 0:02:09]} 12. Bb1 {[%clk 0:02:16.2]} 12... Nc6
{[%clk 0:02:07.3]} 13. Re1 {[%clk 0:02:07.5]} 13... Bg4 {[%clk 0:02:00.2]} 14.
h3 {[%clk 0:02:02.7]} 14... Bh5 {[%clk 0:02:00]} 15. g4 {[%clk 0:01:01.5]} 15...
Bg6 {[%clk 0:01:51.2]} 16. Bxg6 {[%clk 0:00:57]} 16... fxg6 {[%clk 0:01:52.1]}
17. Bg3 {[%clk 0:00:57.3]} 17... Bd6 {[%clk 0:01:45.5]} 18. Ne5 {[%clk
0:00:51.4]} 18... Rc8 {[%clk 0:01:27]} 19. Nxg6 {[%clk 0:00:20]} 19... Bxg3
{[%clk 0:01:24.9]} 20. fxg3 {[%clk 0:00:20.3]} 20... Re8 {[%clk 0:01:21.7]} 21.
Qf3 {[%clk 0:00:16.5]} 21... Nb4 {[%clk 0:01:16.5]} 22. Rf1 {[%clk 0:00:15.4]}
22... Qd6 {[%clk 0:01:03.8]} 23. Ne5 {[%clk 0:00:15.1]} 23... Rxe5 {[%clk
0:00:58.6]} 24. dxe5 {[%clk 0:00:15]} 24... Qxe5 {[%clk 0:00:59.5]} 25. Ne2
{[%clk 0:00:13.7]} 25... Nd3 {[%clk 0:00:56.6]} 26. Rc2 {[%clk 0:00:13.4]} 26...
Nxb2 {[%clk 0:00:55.5]} 27. Nd4 {[%clk 0:00:12.9]} 27... Nd3 {[%clk 0:00:53.7]}
28. Kg2 {[%clk 0:00:08.9]} 28... Re8 {[%clk 0:00:39.8]} 29. Nf5 {[%clk
0:00:08.9]} 29... Kh7 {[%clk 0:00:34.6]} 30. Re2 {[%clk 0:00:08.7]} 30... Re6
{[%clk 0:00:26]} 31. h4 {[%clk 0:00:08.7]} 31... Ne4 {[%clk 0:00:22]} 32. g5
{[%clk 0:00:07.6]} 32... Rg6 {[%clk 0:00:17]} 33. gxh6 {[%clk 0:00:07.5]} 33...
gxh6 {[%clk 0:00:14.8]} 34. h5 {[%clk 0:00:05]} 34... Rg5 {[%clk 0:00:13.1]} 35.
Kh2 {[%clk 0:00:03.2]} 35... Nf6 {[%clk 0:00:11.6]} 36. Rg2 {[%clk 0:00:03.4]}
36... Rxh5+ {[%clk 0:00:10.8]} 37. Nh4 {[%clk 0:00:04.3]} 37... Kg7 {[%clk
0:00:07.5]} 38. Qf4 {[%clk 0:00:04.6]} 38... Nxf4 {[%clk 0:00:07]} 39. gxf4+
{[%clk 0:00:04.8]} 39... Kh7 {[%clk 0:00:06]} 40. fxe5 {[%clk 0:00:05]} 40...
Rxh4+ {[%clk 0:00:06.4]} 41. Kg3 {[%clk 0:00:04.9]} 41... Re4 {[%clk 0:00:06]}
42. exf6 {[%clk 0:00:04.7]} 42... Rxe3+ {[%clk 0:00:06.3]} 43. Rf3 {[%clk
0:00:05.1]} 43... Re8 {[%clk 0:00:05.5]} 44. f7 {[%clk 0:00:05.6]} 44... Rf8
{[%clk 0:00:05.8]} 45. Kf2 {[%clk 0:00:06.5]} 45... h5 {[%clk 0:00:06.1]} 46.
Rg5 {[%clk 0:00:06.8]} 46... h4 {[%clk 0:00:05.9]} 47. Rxd5 {[%clk 0:00:07]}
47... Kg6 {[%clk 0:00:05.7]} 48. Rd6+ {[%clk 0:00:07.2]} 48... Kg7 {[%clk
0:00:05.7]} 49. Rd4 {[%clk 0:00:07.1]} 49... h3 {[%clk 0:00:05.4]} 50. Rh4
{[%clk 0:00:07.1]} 50... Rxf7 {[%clk 0:00:04.1]} 51. Rxf7+ {[%clk 0:00:07.4]}
51... Kxf7 {[%clk 0:00:05]} 52. Rxh3 {[%clk 0:00:08]} 52... b5 {[%clk
0:00:05.9]} 53. Ke2 {[%clk 0:00:08.5]} 53... Ke6 {[%clk 0:00:05.7]} 54. Kd2
{[%clk 0:00:09]} 54... Kd5 {[%clk 0:00:05.5]} 55. Kc3 {[%clk 0:00:09.5]} 55...
a6 {[%clk 0:00:05.6]} 56. a3 {[%clk 0:00:10]} 56... Kc5 {[%clk 0:00:05.5]} 57.
Rh5+ {[%clk 0:00:09.8]} 57... Kb6 {[%clk 0:00:05.8]} 58. Rh6+ {[%clk 0:00:08.9]}
58... Ka5 {[%clk 0:00:06]} 59. Rh5 {[%clk 0:00:08.6]} 59... Ka4 {[%clk
0:00:06.2]} 60. Kb2 {[%clk 0:00:08.8]} 60... a5 {[%clk 0:00:06.1]} 61. Rh4
{[%clk 0:00:08.7]} 61... b4 {[%clk 0:00:04.1]} 62. axb4 {[%clk 0:00:09]} 62...
Kxb4 {[%clk 0:00:03.9]} 63. Rh3 {[%clk 0:00:08.5]} 63... a4 {[%clk 0:00:03.7]}
64. Rc3 {[%clk 0:00:08.5]} 64... Kc5 {[%clk 0:00:03.1]} 65. Ka3 {[%clk 0:00:08]}
65... Kd4 {[%clk 0:00:03.3]} 66. Kb4 {[%clk 0:00:08.2]} 66... a3 {[%clk
0:00:02.7]} 67. Rxa3 {[%clk 0:00:08.4]} 67... Kd5 {[%clk 0:00:01.8]} 68. Rc3
{[%clk 0:00:09.3]} 1-0